fUSD/lending_fUSD_20240615
["ID","MTS","AMOUNT","RATE_DAILY","PERIOD"]
[329574063,1718451143441,-500.0,0.00024383,3]
[329574064,1718451143452,-500.0,0.00024383,3]
[329574065,1718451143475,-573.27,0.00024383,3]
[329574066,1718451143497,-500.0,0.00024383,3]
[329574067,1718451143511,-500.0,0.00024383,3]
[329574068,1718451143541,-500.0,0.00024383,3]
[329574069,1718451143568,-535.22,0.00024383,3]
[329574070,1718451143582,-522.26882241,0.00024383,3]
[329574071,1718451143598,-500.0,0.00024383,3]
[329574072,1718451143613,-653.69,0.00024383,3]
[329574073,1718451143630,-500.0,0.00024383,3]
[329574074,1718451143643,-717.74,0.00024383,3]
[329574075,1718451143684,-500.0,0.00024383,3]
[329574076,1718451143697,-583.01,0.00024383,3]
[329574077,1718451143725,-697.17,0.00024383,3]
[329574078,1718451143741,-611.55,0.00024383,3]
[329574079,1718451143752,-500.0,0.00024383,3]
[329574080,1718451143763,-689.83,0.00024383,3]
[329574081,1718451143774,-500.0,0.00024383,3]
[329574082,1718451143785,-500.0,0.00024383,3]
[329574083,1718451143802,-500.0,0.00024383,3]
[329574084,1718451143819,-288.7361523,0.00024383,3]
[329574085,1718451143846,-641.7,0.00024383,3]
[329574086,1718451143858,-893.27,0.00024383,3]
[329574087,1718451143870,-538.02,0.00024383,3]
[329574088,1718451143885,-572.18,0.00024383,3]
[329574089,1718451143911,-561.19,0.00024383,3]
[329574090,1718451143940,-500.0,0.00024383,3]
[329574091,1718451143965,-216.09542039,0.00024383,3]
[329574092,1718451143986,-619.96911348,0.00024383,3]
[329574093,1718451144002,-522.62810045,0.00024383,3]
[329574094,1718451144029,-500.0,0.00024383,3]
[329574095,1718451144053,-500.0,0.00024383,3]
[329574096,1718451144066,-500.0,0.00024383,3]
[329574097,1718451144086,-506.20963337,0.00024383,3]
[329574098,1718451144100,-519.33,0.00024383,3]
[329574099,1718451144111,-500.0,0.00024383,3]
[329574100,1718451144126,-624.2,0.00024383,3]
[329574101,1718451144168,-500.0,0.00024383,3]
[329574102,1718451144191,-500.0,0.00024383,3]
[329574103,1718451144204,-500.0,0.00024383,3]
[329574104,1718451144217,-500.0,0.00024383,3]
[329574105,1718451144253,-579.75,0.00024383,3]
[329574106,1718451144270,-500.0,0.00024383,3]
[329574107,1718451144294,-575.46,0.00024383,3]
[329574108,1718451144313,-500.0,0.00024383,3]
[329574109,1718451144338,-500.0,0.00024383,3]
[329574110,1718451144356,-500.0,0.00024383,3]
[329574111,1718451144375,-500.0,0.00024383,3]
[329574112,1718451144401,-532.67,0.00024383,3]
[329574113,1718451144424,-500.0,0.00024383,3]
[329574114,1718451144445,-500.0,0.00024383,3]
[329574115,1718451144465,-173.61,0.00024383,3]
[329574116,1718451144492,-500.0,0.00024383,3]
[329574117,1718451144508,-500.0,0.00024383,3]
[329574118,1718451144521,-500.0,0.00024383,3]
[329574119,1718451144541,-537.2578372,0.00024383,3]
[329574120,1718451144560,-687.46,0.00024383,3]
[329574121,1718451144590,-246.2854779,0.00024383,3]
[329574122,1718451144632,-1092.86,0.00024383,3]
[329574123,1718451144657,-524.53,0.00024383,3]
[329574124,1718451144669,-500.0,0.00024383,3]
[329574125,1718451144682,-1502.19,0.00024383,3]
[329574126,1718451144695,-500.0,0.00024383,3]
[329574127,1718451144711,-500.0,0.00024383,3]
[329574128,1718451144724,-500.0,0.00024383,3]
[329574129,1718451144765,-500.0,0.00024383,3]
[329574130,1718451144775,-500.0,0.00024383,3]
[329574131,1718451144794,-500.0,0.00024383,3]
[329574132,1718451144806,-568.37703611,0.00024383,3]
[329574133,1718451144838,-500.0,0.00024383,3]
[329574134,1718451144868,-500.0,0.00024383,3]
[329574135,1718451144895,-612.77,0.00024383,3]
[329574136,1718451144910,-500.0,0.00024383,3]
[329574137,1718451144925,-500.0,0.00024383,3]
[329574138,1718451144964,-500.0,0.00024383,3]
[329574139,1718451144999,-500.0,0.00024383,3]
[329574140,1718451145032,-546.66,0.00024383,3]
[329574141,1718451145075,-500.0,0.00024383,3]
[329574142,1718451145099,-915.8,0.00024383,3]
[329574143,1718451145110,-596.84075067,0.00024383,3]
[329574144,1718451145121,-500.0,0.00024383,3]
[329574145,1718451145132,-500.0,0.00024383,3]
[329574146,1718451145142,-553.21,0.00024383,3]
[329574147,1718451145153,-500.0,0.00024383,3]
[329574148,1718451145170,-500.0,0.00024383,3]
[329574149,1718451145186,-1033.63,0.00024383,3]
[329574150,1718451145218,-500.0,0.00024383,3]
[329574151,1718451145230,-2515.97,0.00024383,3]
[329574152,1718451145241,-605.24,0.00024383,3]
[329574153,1718451145253,-500.0,0.00024383,3]
[329574154,1718451145265,-343.43,0.00024383,3]
[329574155,1718451145296,-500.0,0.00024383,3]
[329574156,1718451145311,-500.0,0.00024383,3]
[329574157,1718451145338,-500.0,0.00024383,3]
[329574158,1718451145367,-500.0,0.00024383,3]
[329574159,1718451145384,-500.0,0.00024383,3]
[329574160,1718451145404,-500.0,0.00024383,3]
[329574161,1718451145432,-500.0,0.00024383,3]
[329574162,1718451145445,-1014.91,0.00024383,3]
[329574163,1718451145457,-517.68,0.00024383,3]
[329574164,1718451145480,-615.03,0.00024383,3]
[329574165,1718451145492,-574.11,0.00024383,3]
[329574166,1718451145505,-500.0,0.00024383,3]
[329574167,1718451145520,-500.0,0.00024383,3]
[329574168,1718451145535,-500.0,0.00024383,3]
[329574169,1718451145548,-1028.74,0.00024383,3]
[329574170,1718451145561,-500.0,0.00024383,3]
[329574171,1718451145573,-500.0,0.00024383,3]
[329574172,1718451145584,-500.0,0.00024383,3]
[329574173,1718451145605,-2483.59,0.00024383,3]
[329574174,1718451145617,-500.0,0.00024383,3]
[329574175,1718451145628,-500.0,0.00024383,3]
[329574176,1718451145640,-206.14640974,0.00024383,3]
[329574177,1718451145664,-500.0,0.00024383,3]
[329574178,1718451145675,-628.76,0.00024383,3]
[329574179,1718451145693,-500.0,0.00024383,3]
[329574180,1718451145721,-500.0,0.00024383,3]
[329574181,1718451145744,-500.0,0.00024383,3]
[329574182,1718451145755,-500.0,0.00024383,3]
[329574183,1718451145768,-500.0,0.00024383,3]
[329574184,1718451145785,-2312.07,0.00024383,3]
[329574185,1718451145810,-500.0,0.00024383,3]
[329574186,1718451145839,-582.73,0.00024383,3]
[329574187,1718451145874,-500.0,0.00024383,3]
[329574188,1718451145891,-1019.86,0.00024383,3]
[329574189,1718451145903,-500.0,0.00024383,3]
[329574190,1718451145929,-505.7,0.00024383,3]
[329574191,1718451145943,-512.53,0.00024383,3]
[329574192,1718451145977,-887.95,0.00024383,3]
[329574193,1718451145990,-526.05,0.00024383,3]
[329574194,1718451146024,-500.0,0.00024383,3]
[329574195,1718451146041,-500.0,0.00024383,3]
[329574196,1718451146100,-500.0,0.00024383,3]
[329574197,1718451146113,-500.0,0.00024383,3]
[329574198,1718451146126,-738.8,0.00024383,3]
[329574199,1718451146141,-500.0,0.00024383,3]
[329574200,1718451146152,-500.0,0.00024383,3]
[329574201,1718451146166,-1715.51,0.00024383,3]
[329574202,1718451146183,-500.0,0.00024383,3]
[329574203,1718451146194,-740.24,0.00024383,3]
[329574204,1718451146207,-960.17,0.00024383,3]
[329574205,1718451146221,-500.0,0.00024383,3]
[329574206,1718451146233,-653.19,0.00024383,3]
[329574207,1718451146247,-582.42,0.00024383,3]
[329574208,1718451146264,-221.07137624,0.00024383,3]
[329574209,1718451146280,-500.0,0.00024383,3]
[329574210,1718451146306,-500.0,0.00024383,3]
[329574211,1718451146330,-500.0,0.00024383,3]
[329574212,1718451146351,-638.94,0.00024383,3]
[329574213,1718451146371,-500.0,0.00024383,3]
[329574214,1718451146386,-1207.64,0.00024383,3]
[329574215,1718451146398,-1093.81,0.00024383,3]
[329574216,1718451146418,-500.0,0.00024383,3]
[329574217,1718451146444,-530.18,0.00024384,2]
[329574218,1718451146462,-369.29,0.00024384,2]
[329574219,1718451146485,-153.27,0.00024384,2]
[329574220,1718451146496,-151.58,0.00024384,2]
[329574221,1718451146506,-150.0,0.00024384,2]
[329574222,1718451146517,-178.84967787,0.00024385,2]
[329574223,1718451146529,-150.0,0.00024391,2]
[329574224,1718451146560,-150.0,0.00024393,2]
[329574225,1718451146573,-241.79306886,0.00024395,2]
[329574226,1718451146588,-1444.2920702,0.00024396,2]
[329574227,1718451146598,-1444.2920702,0.00024401,2]
[329574228,1718451146612,-150.0,0.00024407,2]
[329574229,1718451146628,-515.52255554,0.00024409,2]
[329574230,1718451146646,-169.10526104,0.0002441,2]
[329574231,1718451146657,-150.0,0.00024418,2]
[329574232,1718451146672,-150.0,0.00024419,2]
[329574233,1718451146697,-150.0,0.0002442,2]
[329574234,1718451146716,-150.0,0.00024421,2]
[329574235,1718451146726,-156.25014261,0.00024422,2]
[329574236,1718451146749,-150.0,0.00024423,2]
[329574237,1718451146760,-150.0,0.00024428,2]
[329574238,1718451146770,-150.0,0.0002443,2]
[329574239,1718451146780,-158.05061754,0.00024431,2]
[329574240,1718451146812,-300.0,0.00024439,2]
[329574241,1718451146829,-300.0,0.00024444,2]
[329574242,1718451146840,-504.02087361,0.00024444,2]
[329574243,1718451146851,-150.0,0.00024447,2]
[329574244,1718451146878,-150.0,0.00024448,2]
[329574245,1718451146890,-782.54731293,0.00024449,2]
[329574246,1718451146908,-782.54731293,0.00024457,2]
[329574247,1718451146927,-150.0,0.00024459,2]
[329574248,1718451146944,-2245.0,0.00024463,7]
[329574249,1718451146989,-153.25370383,0.00024464,2]
[329574250,1718451147020,-153.6760357,0.0002447,5]
[329574251,1718451147039,-212.0,0.0002447,2]
[329574252,1718451147050,-150.0,0.00024476,2]
[329574253,1718451147071,-153.72328539,0.00024482,2]
[329574254,1718451147094,-150.0,0.00024483,2]
[329574255,1718451147112,-150.0,0.00024483,2]
[329574256,1718451147125,-782.54731293,0.00024487,2]
[329574257,1718451147138,-1444.2920702,0.00024492,2]
[329574258,1718451147152,-150.0,0.00024494,2]
[329574259,1718451147163,-286.63919872,0.00024494,2]
[329574260,1718451147184,-1500.0,0.00024495,2]
[329574261,1718451147200,-150.0,0.00024497,2]
[329574262,1718451147215,-150.0,0.00024497,2]
[329574263,1718451147227,-150.33279369,0.00024502,2]
[329574264,1718451147240,-300.0,0.00024516,2]
[329574265,1718451147253,-150.0,0.00024522,2]
[329574266,1718451147266,-151.30551572,0.00024532,2]
[329574267,1718451147282,-150.0,0.00024533,2]
[329574268,1718451147299,-150.0,0.00024538,2]
[329574269,1718451147319,-150.0,0.00024538,2]
[329574270,1718451147330,-150.0,0.00024544,2]
[329574271,1718451147346,-300.0,0.00024546,2]
[329574272,1718451147367,-241.79306886,0.00024548,2]
[329574273,1718451147392,-1444.2920702,0.00024561,2]
[329574274,1718451147419,-150.0,0.00024564,2]
[329574275,1718451147438,-150.0,0.00024568,2]
[329574276,1718451147451,-300.0,0.0002457,2]
[329574277,1718451147483,-150.0,0.00024571,2]
[329574278,1718451147505,-700.018143,0.00024572,2]
[329574279,1718451147516,-1194.530331,0.00024572,2]
[329574280,1718451147526,-161.665926,0.00024572,2]
[329574281,1718451147548,-158.943114,0.00024572,2]
[329574282,1718451147559,-507.903001,0.00024572,2]
[329574283,1718451147580,-180.999396,0.00024572,2]
[329574284,1718451147593,-186.87877,0.00024572,2]
[329574285,1718451147603,-1018.245546,0.00024572,2]
[329574286,1718451147616,-173.136935,0.00024572,2]
[329574287,1718451147629,-181.843116,0.00024572,2]
[329574288,1718451147647,-761.8545,0.00024572,2]
[329574289,1718451147667,-186.703038,0.00024572,2]
[329574290,1718451147690,-191.859764,0.00024572,2]
[329574291,1718451147716,-2188.19778,0.00024572,2]
[329574292,1718451147726,-211.129873,0.00024572,2]
[329574293,1718451147738,-9857.123391,0.00024572,2]
[329574294,1718451147750,-459.916763,0.00024572,2]
[329574295,1718451147769,-258.552755,0.00024572,2]
[329574296,1718451147803,-176.826942,0.00024572,2]
[329574297,1718451147820,-181.681102,0.00024572,2]
[329574298,1718451147850,-12257.023707,0.00024572,2]
[329574299,1718451147862,-5326.565123,0.00024572,2]
[329574300,1718451147898,-181.256457,0.00024572,2]
[329574301,1718451147915,-172.114939,0.00024572,2]
[329574302,1718451147926,-5000.0,0.00024589,2]
[329574303,1718451147941,-150.0,0.00024603,2]
[329574304,1718451147956,-1444.2920702,0.00024607,2]
[329574305,1718451147971,-152.63377509,0.0002461,2]
[329574306,1718451147986,-150.0,0.00024611,2]
[329574307,1718451147998,-150.0,0.00024613,2]
[329574308,1718451148009,-156.06221883,0.00024624,2]
[329574309,1718451148026,-300.0,0.00024626,2]
[329574310,1718451148048,-153.72328539,0.00024628,2]
[329574311,1718451148067,-153.25370383,0.00024632,2]
[329574312,1718451148230,-156.06221883,0.00024633,2]
[329574313,1718451148245,-155.344376,0.00024644,2]
[329574314,1718451148261,-150.33279369,0.00024646,2]
[329574315,1718451148279,-782.54731293,0.00024647,2]
[329574316,1718451148290,-150.0,0.00024655,2]
[329574317,1718451148302,-5000.0,0.00024657,2]
[329574318,1718451148314,-500.0,0.00024657,3]
[329574319,1718451148336,-522.01,0.00024657,3]
[329574320,1718451148349,-500.0,0.00024657,3]
[329574321,1718451148365,-500.0,0.00024657,3]
[329574322,1718451148379,-500.0,0.00024657,3]
[329574323,1718451148392,-496.32,0.00024657,3]
[329574324,1718451148420,-500.12,0.00024657,3]
[329574325,1718451148451,-616.10599199,0.00024657,3]
[329574326,1718451148463,-500.0,0.00024657,3]
[329574327,1718451148477,-617.41,0.00024657,3]
[329574328,1718451148490,-500.0,0.00024657,3]
[329574329,1718451148512,-500.0,0.00024657,3]
[329574330,1718451148524,-500.0,0.00024657,3]
[329574331,1718451148545,-500.0,0.00024657,3]
[329574332,1718451148563,-634.53882968,0.00024657,3]
[329574333,1718451148589,-500.0,0.00024657,3]
[329574334,1718451148632,-500.0,0.00024657,3]
[329574335,1718451148645,-500.0,0.00024657,3]
[329574336,1718451148670,-500.0,0.00024657,3]
[329574337,1718451148691,-500.0,0.00024657,3]
[329574338,1718451148704,-500.0,0.00024657,3]
[329574339,1718451148722,-500.0,0.00024657,3]
[329574340,1718451148740,-500.0,0.00024657,3]
[329574341,1718451148752,-500.0,0.00024657,3]
[329574342,1718451148773,-500.0,0.00024657,3]
[329574343,1718451148804,-500.0,0.00024657,3]
[329574344,1718451148834,-593.7,0.00024657,3]
[329574345,1718451148849,-426.86656894,0.00024657,3]
[329574346,1718451148860,-924.58,0.00024657,3]
[329574347,1718451148879,-723.95,0.00024657,3]
[329574348,1718451148892,-500.0,0.00024657,3]
[329574349,1718451148914,-604.06051751,0.00024657,3]
[329574350,1718451148931,-672.34,0.00024657,3]
[329574351,1718451148947,-500.0,0.00024657,3]
[329574352,1718451148988,-525.61,0.00024657,3]
[329574353,1718451149012,-500.0,0.00024657,3]
[329574354,1718451149025,-500.0,0.00024657,3]
[329574355,1718451149046,-500.0,0.00024657,3]
[329574356,1718451149074,-500.0,0.00024657,3]
[329574357,1718451149104,-665.35,0.00024657,3]
[329574358,1718451149149,-500.0,0.00024657,3]
[329574359,1718451149200,-500.0,0.00024657,3]
[329574360,1718451149228,-500.0,0.00024657,3]
[329574361,1718451149239,-573.27,0.00024657,3]
[329574362,1718451149268,-500.0,0.00024657,3]
[329574363,1718451149295,-500.0,0.00024657,3]
[329574364,1718451149344,-500.0,0.00024657,3]
[329574365,1718451149366,-535.22,0.00024657,3]
[329574366,1718451149388,-500.0,0.00024657,3]
[329574367,1718451149425,-653.69,0.00024657,3]
[329574368,1718451149437,-621.30778605,0.00024657,3]
[329574369,1718451149449,-717.74,0.00024657,3]
[329574370,1718451149494,-500.0,0.00024657,3]
[329574371,1718451149535,-583.01,0.00024657,3]
[329574372,1718451149565,-697.17,0.00024657,3]
[329574373,1718451149583,-611.55,0.00024657,3]
[329574374,1718451149621,-500.0,0.00024657,3]
[329574375,1718451149648,-689.83,0.00024657,3]
[329574376,1718451149664,-513.2132303,0.00024657,3]
[329574377,1718451149692,-611.87183638,0.00024657,3]
[329574378,1718451149703,-500.0,0.00024657,3]
[329574379,1718451149713,-641.7,0.00024657,3]
[329574380,1718451149724,-893.27,0.00024657,3]
[329574381,1718451149734,-538.02,0.00024657,3]
[329574382,1718451149744,-572.18,0.00024657,3]
[329574383,1718451149754,-561.19,0.00024657,3]
[329574384,1718451149765,-500.0,0.00024657,3]
[329574385,1718451149780,-500.0,0.00024657,3]
[329574386,1718451149800,-500.0,0.00024657,3]
[329574387,1718451149825,-500.0,0.00024657,3]
[329574388,1718451149852,-519.33,0.00024657,3]
[329574389,1718451149892,-500.0,0.00024657,3]
[329574390,1718451149928,-624.2,0.00024657,3]
[329574391,1718451149945,-577.16,0.00024657,3]
[329574392,1718451149962,-500.0,0.00024657,3]
[329574393,1718451149985,-500.0,0.00024657,3]
[329574394,1718451149997,-500.0,0.00024657,3]
[329574395,1718451150017,-579.75,0.00024657,3]
[329574396,1718451150031,-500.0,0.00024657,3]
[329574397,1718451150056,-575.46,0.00024657,3]
[329574398,1718451150090,-500.0,0.00024657,3]
[329574399,1718451150104,-500.0,0.00024657,3]
[329574400,1718451150131,-500.0,0.00024657,3]
[329574401,1718451150162,-500.0,0.00024657,3]
[329574402,1718451150181,-532.67,0.00024657,3]
[329574403,1718451150219,-500.0,0.00024657,3]
[329574404,1718451150233,-500.0,0.00024657,3]
[329574405,1718451150246,-173.61,0.00024657,3]
[329574406,1718451150257,-500.0,0.00024657,3]
[329574407,1718451150269,-500.0,0.00024657,3]
[329574408,1718451150282,-500.0,0.00024657,3]
[329574409,1718451150317,-687.46,0.00024657,3]
[329574410,1718451150356,-1092.86,0.00024657,3]
[329574411,1718451150408,-524.53,0.00024657,3]
[329574412,1718451150422,-500.0,0.00024657,3]
[329574413,1718451150452,-1502.19,0.00024657,3]
[329574414,1718451150479,-500.0,0.00024657,3]
[329574415,1718451150493,-417.72863796,0.00024657,3]
[329574416,1718451150507,-500.0,0.00024657,3]
[329574417,1718451150521,-500.0,0.00024657,3]
[329574418,1718451150531,-500.0,0.00024657,3]
[329574419,1718451150550,-500.0,0.00024657,3]
[329574420,1718451150569,-500.0,0.00024657,3]
[329574421,1718451150581,-500.0,0.00024657,3]
[329574422,1718451150597,-612.77,0.00024657,3]
[329574423,1718451150624,-500.0,0.00024657,3]
[329574424,1718451150661,-500.0,0.00024657,3]
[329574425,1718451150732,-500.0,0.00024657,3]
[329574426,1718451150784,-500.0,0.00024657,3]
[329574427,1718451150846,-546.66,0.00024657,3]
[329574428,1718451150864,-500.0,0.00024657,3]
[329574429,1718451150881,-915.8,0.00024657,3]
[329574430,1718451150908,-234.92601838,0.00024657,3]
[329574431,1718451150938,-500.0,0.00024657,3]
[329574432,1718451150955,-553.21,0.00024657,3]
[329574433,1718451150977,-500.0,0.00024657,3]
[329574434,1718451150994,-500.0,0.00024657,3]
[329574435,1718451151011,-1033.63,0.00024657,3]
[329574436,1718451151026,-559.2542386,0.00024657,3]
[329574437,1718451151093,-2515.97,0.00024657,3]
[329574438,1718451151136,-605.24,0.00024657,3]
[329574439,1718451151152,-500.0,0.00024657,3]
[329574440,1718451151172,-500.0,0.00024657,3]
[329574441,1718451151185,-500.0,0.00024657,3]
[329574442,1718451151199,-500.0,0.00024657,3]
[329574443,1718451151212,-500.0,0.00024657,3]
[329574444,1718451151224,-500.0,0.00024657,3]
[329574445,1718451151240,-500.0,0.00024657,3]
[329574446,1718451151253,-500.0,0.00024657,3]
[329574447,1718451151286,-1014.91,0.00024657,3]
[329574448,1718451151299,-517.68,0.00024657,3]
[329574449,1718451151309,-574.11,0.00024657,3]
[329574450,1718451151319,-500.0,0.00024657,3]
[329574451,1718451151351,-500.0,0.00024657,3]
[329574452,1718451151368,-500.0,0.00024657,3]
[329574453,1718451151401,-1028.74,0.00024657,3]
[329574454,1718451151418,-500.0,0.00024657,3]
[329574455,1718451151432,-500.0,0.00024657,3]
[329574456,1718451151449,-500.0,0.00024657,3]
[329574457,1718451151461,-2483.59,0.00024657,3]
[329574458,1718451151488,-500.0,0.00024657,3]
[329574459,1718451151550,-500.0,0.00024657,3]
[329574460,1718451151573,-500.0,0.00024657,3]
[329574461,1718451151591,-628.76,0.00024657,3]
[329574462,1718451151603,-500.0,0.00024657,3]
[329574463,1718451151620,-545.01,0.00024657,3]
[329574464,1718451151633,-500.0,0.00024657,3]
[329574465,1718451151648,-500.0,0.00024657,3]
[329574466,1718451151668,-500.0,0.00024657,3]
[329574467,1718451151691,-2312.07,0.00024657,3]
[329574468,1718451151702,-500.0,0.00024657,3]
[329574469,1718451151716,-582.73,0.00024657,3]
[329574470,1718451151734,-500.0,0.00024657,3]
[329574471,1718451151751,-1019.86,0.00024657,3]
[329574472,1718451151763,-186.53,0.00024657,3]
[329574473,1718451151776,-505.7,0.00024657,3]
[329574474,1718451151787,-512.53,0.00024657,3]
[329574475,1718451151798,-887.95,0.00024657,3]
[329574476,1718451151811,-526.05,0.00024657,3]
[329574477,1718451151829,-500.0,0.00024657,3]
[329574478,1718451151876,-500.0,0.00024657,3]
[329574479,1718451151888,-500.0,0.00024657,3]
[329574480,1718451151924,-738.8,0.00024657,3]
[329574481,1718451151945,-500.0,0.00024657,3]
[329574482,1718451151965,-500.0,0.00024657,3]
[329574483,1718451151990,-1715.51,0.00024657,3]
[329574484,1718451152024,-500.0,0.00024657,3]
[329574485,1718451152037,-740.24,0.00024657,3]
[329574486,1718451152057,-960.17,0.00024657,3]
[329574487,1718451152078,-500.0,0.00024657,3]
[329574488,1718451152094,-653.19,0.00024657,3]
[329574489,1718451152109,-582.42,0.00024657,3]
[329574490,1718451152138,-500.0,0.00024657,3]
[329574491,1718451152153,-500.0,0.00024657,3]
[329574492,1718451152168,-500.0,0.00024657,3]
[329574493,1718451152212,-638.94,0.00024657,3]
[329574494,1718451152225,-500.0,0.00024657,3]
[329574495,1718451152238,-1207.64,0.00024657,3]
[329574496,1718451152254,-1093.81,0.00024657,3]
[329574497,1718451152272,-500.0,0.00024657,3]
[329574498,1718451152286,-1000.0,0.00024658,2]
[329574499,1718451152315,-1000.0,0.00024658,2]
[329574500,1718451152345,-1000.0,0.00024658,2]
[329574501,1718451152357,-1000.0,0.00024658,2]
[329574502,1718451152370,-1000.0,0.00024658,2]
[329574503,1718451152383,-1000.0,0.00024658,2]
[329574504,1718451152395,-1000.0,0.00024658,2]
[329574505,1718451152420,-1000.0,0.00024658,2]
[329574506,1718451152439,-1000.0,0.00024658,2]
[329574507,1718451152481,-1000.0,0.00024658,2]
[329574508,1718451152493,-1000.0,0.00024658,2]
[329574509,1718451152512,-1000.0,0.00024658,2]
[329574510,1718451152542,-1000.0,0.00024658,2]
[329574511,1718451152554,-691.0,0.00024658,2]
[329574512,1718451152576,-151.0,0.00024658,7]
[329574513,1718451152589,-151.0,0.00024658,7]
[329574514,1718451152602,-151.0,0.00024658,7]
[329574515,1718451152614,-151.0,0.00024658,7]
[329574516,1718451152631,-151.0,0.00024658,7]
[329574517,1718451152652,-270.308631,0.00024658,7]
[329574518,1718451152663,-150.0,0.00024658,2]
[329574519,1718451152693,-241.79306886,0.0002466,2]
[329574520,1718451152711,-150.0,0.00024666,2]
[329574521,1718451152729,-515.52255554,0.00024666,2]
[329574522,1718451152767,-716.09055291,0.00024681,2]
[329574523,1718451152786,-782.54731293,0.00024681,2]
[329574524,1718451152797,-5000.0,0.00024684,2]
[329574525,1718451152828,-1233.10850258,0.00024685,2]
[329574526,1718451152855,-300.0,0.00024689,2]
[329574527,1718451152867,-300.70851044,0.00024691,2]
[329574528,1718451152881,-1683.57,0.000247,2]
[329574529,1718451152909,-504.02087361,0.000247,2]
[329574530,1718451152957,-150.0,0.00024704,2]
[329574531,1718451152990,-150.0,0.00024705,2]
[329574532,1718451153043,-241.79306886,0.00024706,2]
[329574533,1718451153077,-1444.2920702,0.00024706,2]
[329574534,1718451153112,-150.0,0.00024709,2]
[329574535,1718451153129,-300.0,0.0002471,2]
[329574536,1718451153147,-241.79306886,0.0002471,2]
[329574537,1718451153163,-153.1,0.00024715,3]
[329574538,1718451153177,-249.44162897,0.00024719,2]
[329574539,1718451153188,-150.0,0.00024721,2]
[329574540,1718451153206,-249.44162897,0.00024725,2]
[329574541,1718451153217,-152.40462388,0.00024726,2]
[329574542,1718451153231,-150.0,0.00024732,2]
[329574543,1718451153264,-300.0,0.0002474,2]
[329574544,1718451153277,-166.66666666,0.00024741,2]
[329574545,1718451153322,-300.0,0.0002475,2]
[329574546,1718451153352,-5000.0,0.00024755,2]
[329574547,1718451153392,-150.0,0.00024756,2]
[329574548,1718451153406,-174.51792777,0.00024756,2]
[329574549,1718451153421,-150.0,0.0002476,2]
[329574550,1718451153466,-300.0,0.00024762,2]
[329574551,1718451153486,-1444.2920702,0.00024764,2]
[329574552,1718451153501,-782.54731293,0.00024769,2]
[329574553,1718451153523,-515.52255554,0.00024772,2]
[329574554,1718451153549,-150.0,0.00024773,2]
[329574555,1718451153595,-241.79306886,0.00024781,2]
[329574556,1718451153607,-150.0,0.00024783,2]
[329574557,1718451153623,-150.0,0.00024785,2]
[329574558,1718451153660,-249.44162897,0.00024788,2]
[329574559,1718451153692,-150.0,0.00024789,2]
[329574560,1718451153733,-249.44162897,0.00024792,2]
[329574561,1718451153748,-167.92400973,0.00024792,2]
[329574562,1718451153792,-241.79306886,0.00024793,2]